Cogmind - Beta 13 @@@ ROGUE MODE // 2024.04.05 @ 01:15:56 Player: emory Result: Destroyed by X-57 Shotgunner with High-powered Shotgun Performance ------------- Evolutions (2) 1000 Regions Visited (5) 1000 Robots Destroyed (13) 65 Value Destroyed (493) 493 Prototype IDs (0) 0 Alien Tech Used (0) 0 Bonus (0) 0 TOTAL SCORE: 2558 Bonus ------- None Cogmind --------- Core Integrity 0/550 Matter 109/300 Energy 100/100 System Corruption 9% Temperature Cool (92) Movement Core (700) Ox13 Location -8/Materials Parts ------- > --- POWER (1) -------- (None) > --- PROPULSION (4) --- (None) > --- UTILITY (4) ------ High-capacity Storage Unit Improved Signal Interpreter > --- WEAPON (2) ------- (None) > --- INVENTORY (20) --- Fission Core Peak State ------------ > --- POWER ------------ Light Deuterium Engine > --- PROPULSION ------- Aluminum Leg Aluminum Leg > --- UTILITY ---------- Small Storage Unit High-capacity Matter Pod Structural Scanner Visual Processing Unit > --- WEAPON ----------- Assault Rifle Rocket Launcher > --- INVENTORY -------- Ion Engine Fission Core Mini Grenade Launcher [Rating: 13] Favorites ----------- Power Light Ion Engine Engine Light Ion Engine Power Core Light Nuclear Core Propulsion Aluminum Leg Leg Aluminum Leg Utility Small Storage Unit Device Structural Scanner Storage Small Storage Unit Processor Improved Signal Interpreter Weapon Assault Rifle Energy Gun Particle Gun Ballistic Gun Assault Rifle Ballistic Cannon Assault Cannon Launcher Rocket Launcher Special Melee Weapon Datajack Build | -11 -10 -10 -10 -9 -8 ------- Run | Yrd Mat Min Exi Min Mat Slots Evolved 4 | . . . . . 4 Power . | . . . . . . Propulsion 2 | . . . . . 2 Utility 2 | . . . . . 2 Weapon . | . . . . . . Parts Attached 21 | 5 . 1 . 1 14 Power 4 | 1 . . . . 3 Engine 3 | 1 . . . . 2 Core 1 | . . . . . 1 Reactor . | . . . . . . Propulsion 4 | 2 . . . . 2 Treads . | . . . . . . Leg 4 | 2 . . . . 2 Wheel . | . . . . . . Hover . | . . . . . . Flight . | . . . . . . Utility 7 | 1 . 1 . . 5 Device 1 | . . 1 . . . Storage 3 | 1 . . . . 2 Processor 3 | . . . . . 3 Hackware . | . . . . . . Protection . | . . . . . . Artifact . | . . . . . . Weapon 6 | 1 . . . 1 4 Energy Gun 1 | . . . . . 1 Energy Cannon . | . . . . . . Ballistic Gun 1 | 1 . . . . . Ballistic Cannon 1 | . . . . . 1 Launcher 2 | . . . . 1 1 Special Weapon . | . . . . . . Impact Weapon . | . . . . . . Slashing Weapon . | . . . . . . Piercing Weapon . | . . . . . . Special Melee Weapon 1 | . . . . . 1 Unidentified Prototypes . | . . . . . . Parts Lost 16 | . . . . . 16 Power 3 | . . . . . 3 Propulsion 4 | . . . . . 4 Utility 3 | . . . . . 3 Weapon 6 | . . . . . 6 Highest Loss Streak 7 | . . . . . 7 To Critical Strikes . | . . . . . . Average Slot Usage (%) 60 | . 71 79 85 91 39 Engine 7 | . 14 14 14 14 1 Core 2 | . . . . . 5 Leg 14 | . 28 28 28 28 2 Device 5 | . . 8 14 14 2 Storage 11 | . 14 14 14 14 10 Processor 4 | . . . . . 8 Ballistic Gun 6 | . 14 14 14 14 . Ballistic Cannon 2 | . . . . . 5 Launcher 2 | . . . . 5 2 Naked Turns . | . . . . . . Heaviest Build 50 | 10 10 11 11 15 50 Greatest Support 20 | 20 20 20 20 20 20 Greatest Overweight (x) 16 | . . . . . 16 Average Overweight (x) 1 | . . . . . 4 Largest Inventory Capacity 20 | 8 8 8 8 8 20 Average Capacity 11 | 7 8 8 8 8 15 Most Carried 6 | 5 2 5 5 6 6 Average Carried 2 | 1 1 3 4 5 1 Final Capacity 20 | 8 8 8 8 8 20 Final Carried 5 | 1 2 4 5 5 1 Class Distribution -------------------- 100% | Mutant Dominant Class ---------------- Mutant | -10/Materials Mutant | -10/Mines Mutant | -10/Exiles Mutant | -9/Mines Mutant | -8/Materials Resources | -11 -10 -10 -10 -9 -8 ----------- Run | Yrd Mat Min Exi Min Mat Matter Collected 494 | 209 50 199 . 17 19 Remotely . | . . . . . . Salvage Created 268 | . . . . 17 251 Parts 15 | . . . . 3 12 Haulers Intercepted . | . . . . . . Recyclers Shooed . | . . . . . . Parts Field Recycled . | . . . . . . Retrieved Matter . | . . . . . . Parts Self-Destructed . | . . . . . . Prevented . | . . . . . . Kills | -11 -10 -10 -10 -9 -8 ------- Run | Yrd Mat Min Exi Min Mat Combat Hostiles Destroyed 13 | . . . . 4 9 Guns 2 | . . . . 2 . Cannons 3 | . . . . . 3 AOE 8 | . . . . 2 6 Classes Destroyed 4 | . . . . 1 3 Swarmer 4 | . . . . 4 . Grunt 7 | . . . . . 7 Brawler 1 | . . . . . 1 Sentry 1 | . . . . . 1 Best Kill Streak 4 | . . . . 4 3 Combat Bots Only 4 | . . . . 4 3 Max Kills in Single Turn 2 | . . . . 2 2 Gunslinging . | . . . . . . Exploded 2 | . . . . 2 2 Melee . | . . . . . . Uniques/NPCs Destroyed . | . . . . . . Combat | -11 -10 -10 -10 -9 -8 -------- Run | Yrd Mat Min Exi Min Mat Hostile Shots Fired 131 | . 15 . . 8 108 Missed 42 | . 6 . . 3 33 Damage Taken 1844 | . 113 6 . 74 1651 Core 599 | . 25 . . 17 557 Absorbed by Shields . | . . . . . . Core Remaining (%) 91 | 100 . . . 83 . Volleys Fired 44 | . 1 . . 4 39 Largest 2 | . 1 . . 2 2 Hottest 53 | . 20 . . 53 53 Shots Fired 51 | . 1 . . 5 45 Gun 15 | . 1 . . 4 10 Cannon 21 | . . . . . 21 Launcher 15 | . . . . 1 14 Special . | . . . . . . Kinetic 36 | . 1 . . 4 31 Thermal . | . . . . . . Explosive 15 | . . . . 1 14 Electromagnetic . | . . . . . . Robot Hit Streak 7 | . . . . 1 7 Robot Miss Streak 3 | . 1 . . 3 2 Penetration Max . | . . . . . . Secondary Targets . | . . . . . . Shots Hit Robots 38 | . . . . 2 36 Core Hits 25 | . 1 . . 4 20 Critical Kills . | . . . . . . Critical Parts Destroyed . | . . . . . . Critical Strikes 3 | . . . . . 3 Blast 3 | . . . . . 3 Melee Attacks 3 | . . . . . 3 Impact . | . . . . . . Slashing . | . . . . . . Piercing . | . . . . . . Sneak Attacks . | . . . . . . Combat Hostiles . | . . . . . . Follow-up Attacks . | . . . . . . Damage Inflicted 1599 | . 5 . . 202 1392 Guns 110 | . . . . 25 85 Cannons 337 | . . . . . 337 Explosions 1146 | . . . . 176 970 Melee . | . . . . . . Ramming 6 | . 5 . . 1 . Kinetic 447 | . . . . 25 422 Thermal . | . . . . . . Explosive 1146 | . . . . 176 970 Electromagnetic . | . . . . . . Impact . | . . . . . . Slashing . | . . . . . . Piercing . | . . . . . . Highest Corruption 9 | . . . . . 9 Average Corruption 9 | . . . . . 9 Corruption Purged . | . . . . . . Corruption Blocked . | . . . . . . Effects 28 | . . . . . 28 Message Errors 9 | . . . . . 9 Matter Fused 7 | . . . . . 7 Heat Flow Errors 3 | . . . . . 3 Energy Discharges 5 | . . . . . 5 Data Loss (minor) 2 | . . . . . 2 Misfires 1 | . . . . . 1 Weapon Failures 1 | . . . . . 1 Overload Shots . | . . . . . . Overflow Damage 119 | . . . . 27 92 Projectiles . | . . . . . . Explosions 119 | . . . . 27 92 Melee . | . . . . . . Knockbacks 2 | . . . . . 2 Impact . | . . . . . . Kinetic 2 | . . . . . 2 Secondary . | . . . . . . Self-Inflicted Damage 482 | . . . . 30 452 Shots 14 | . . . . 1 13 Rammed . | . . . . . . Targets Rammed 3 | . 2 . . 1 . Kicked 3 | . 2 . . 1 . Crushed . | . . . . . . Highest Temperature 410 | . . . . . 410 Average Temperature 158 | . . . . . 158 Received Heat Transfer 609 | . 69 . . . 540 Effects 1 | . . . . . 1 Short Circuit 1 | . . . . . 1 Siege Activations . | . . . . . . Robots Corrupted . | . . . . . . Combat Hostiles . | . . . . . . Parts Fried . | . . . . . . Impact Corruptions . | . . . . . . Robots Melted . | . . . . . . Combat Hostiles . | . . . . . . Parts Melted . | . . . . . . Heat Transferred . | . . . . . . Parts Sabotaged . | . . . . . . Parts Stolen . | . . . . . . Parts Stripped . | . . . . . . Power Chain Reactions . | . . . . . . Alert | -11 -10 -10 -10 -9 -8 ------- Run | Yrd Mat Min Exi Min Mat Peak Influence 190 | . 19 7 . 141 190 Initial 54 | . . 7 . . 54 Average 33 | . 12 7 . 21 47 Maximum Alert Level . | . . . . . . Low Security (%) 100 | 100 100 100 . 100 100 Level 1 . | . . . . . . Level 2 . | . . . . . . Level 3 . | . . . . . . Level 4 . | . . . . . . Level 5 . | . . . . . . High Security . | . . . . . . Max Security . | . . . . . . Squads Dispatched 4 | . 2 . . . 2 Investigation 1 | . 1 . . . . Extermination . | . . . . . . Reinforcement 3 | . 1 . . . 2 Assault . | . . . . . . Garrison . | . . . . . . Intercept . | . . . . . . Searches Triggered . | . . . . . . Construction Impeded . | . . . . . . Haulers Reinforced . | . . . . . . Active Scanning Responses . | . . . . . . Cargo Convoy Interrupts . | . . . . . . Stealth | -11 -10 -10 -10 -9 -8 --------- Run | Yrd Mat Min Exi Min Mat Distress Signals 6 | . 2 1 . . 3 Communications Jammed . | . . . . . . Distress Signals . | . . . . . . Times Spotted 35 | . 5 4 . 6 20 Peak Tracking Total 7 | . 4 2 . 4 7 Tactical Retreats 2 | . . . . 1 1 Traps | -11 -10 -10 -10 -9 -8 ------- Run | Yrd Mat Min Exi Min Mat Traps Triggered . | . . . . . . Indirectly . | . . . . . . Trap Hack Attempts . | . . . . . . Triggered . | . . . . . . Disarmed . | . . . . . . Reprogrammed 4 | . 4 . . . . Reused . | . . . . . . Traps Extracted . | . . . . . . Installed . | . . . . . . Triggered . | . . . . . . Machines | -11 -10 -10 -10 -9 -8 ---------- Run | Yrd Mat Min Exi Min Mat Machines Disabled 4 | . . . . 3 1 Max in Single Turn 3 | . . . . 3 1 Machines Repaired . | . . . . . . Machines Dismantled . | . . . . . . Machines Sabotaged . | . . . . . . Overloaded Fab Kills . | . . . . . . Hacking | -11 -10 -10 -10 -9 -8 --------- Run | Yrd Mat Min Exi Min Mat Machines Accessed 2 | . 1 . . . 1 Terminals 2 | . 1 . . . 1 Fabricators . | . . . . . . Repair Stations . | . . . . . . Recycling Units . | . . . . . . Scanalyzers . | . . . . . . Garrison Access . | . . . . . . Total Hacks 4 | . 2 . . . 2 Successful 4 | . 2 . . . 2 Failed . | . . . . . . Catastrophic . | . . . . . . Database Lockouts . | . . . . . . Manual . | . . . . . . Terminals 4 | . 2 . . . 2 Fabricators . | . . . . . . Repair Stations . | . . . . . . Recycling Units . | . . . . . . Scanalyzers . | . . . . . . Garrison Access . | . . . . . . Terminal Hacks 4 | . 2 . . . 2 Record 2 | . . . . . 2 Locate Traps 1 | . 1 . . . . Reprogram Traps 1 | . 1 . . . . Fabricator Hacks . | . . . . . . Repair Station Hacks . | . . . . . . Recycling Unit Hacks . | . . . . . . Scanalyzer . | . . . . . . Garrison Access Hacks . | . . . . . . Unauthorized Hacks . | . . . . . . Terminals . | . . . . . . Fabricators . | . . . . . . Repair Stations . | . . . . . . Recycling Units . | . . . . . . Scanalyzers . | . . . . . . Garrison Access . | . . . . . . Data Cores Recovered . | . . . . . . Used . | . . . . . . Hacking Detections . | . . . . . . Full Trace Events . | . . . . . . Feedback Events . | . . . . . . Feedback Blocked . | . . . . . . Robot Schematics Acquired . | . . . . . . Robots Built . | . . . . . . Authchips . | . . . . . . Time . | . . . . . . Total Robot Build Rating . | . . . . . . Part Schematics Acquired . | . . . . . . Parts Built . | . . . . . . Authchips . | . . . . . . Time . | . . . . . . Total Part Build Rating . | . . . . . . Parts Repaired . | . . . . . . Time . | . . . . . . Parts Recycled . | . . . . . . Recycled Matter . | . . . . . . Retrieved Matter . | . . . . . . Retrieved Components . | . . . . . . Parts Scanalyzed . | . . . . . . Part Schematics Acquired . | . . . . . . Parts Damaged . | . . . . . . Bothacking | -11 -10 -10 -10 -9 -8 ------------ Run | Yrd Mat Min Exi Min Mat Used RIF Installer . | . . . . . . Robots Hacked 1 | . . . . . 1 Non-combat . | . . . . . . Combat 1 | . . . . . 1 Robot Hacks Applied 1 | . . . . . 1 parse_system 1 | . . . . . 1 Relay Couplers Released . | . . . . . . Fabnet Peak Effective % . | . . . . . . Robots Rewired . | . . . . . . Allies Hacked . | . . . . . . Hacks Repelled . | . . . . . . Allies | -11 -10 -10 -10 -9 -8 -------- Run | Yrd Mat Min Exi Min Mat Total Allies 2 | . . 2 . . . Largest Group 2 | . . 2 2 . . Highest-Rated Group 45 | . . 45 45 . . Highest-Rated Ally 31 | . . 31 31 . . Total Orders . | . . . . . . Ally Attacks . | . . . . . . Total Damage . | . . . . . . Kills . | . . . . . . Allies Corrupted . | . . . . . . Allies Melted . | . . . . . . Intel | -11 -10 -10 -10 -9 -8 ------- Run | Yrd Mat Min Exi Min Mat Robot Analysis Total . | . . . . . . Derelict Logs Recovered 3 | . . . . 3 . Drone Launches . | . . . . . . Drone Recoveries . | . . . . . . Exploration | -11 -10 -10 -10 -9 -8 ------------- Run | Yrd Mat Min Exi Min Mat Turns Passed 2060 | 57 176 145 77 531 1074 Spaces Moved 1137 | 48 143 118 64 433 331 Core 242 | 15 . . . . 227 Treads . | . . . . . . Legs 895 | 33 143 118 64 433 104 Wheels . | . . . . . . Hover . | . . . . . . Flight . | . . . . . . Fastest Speed 50 | 50 120 120 120 120 100 Average Speed 168 | 98 120 120 120 120 290 Slowest Speed 850 | 120 120 120 120 120 850 Overloaded Moves . | . . . . . . Propulsion Burnouts . | . . . . . . Robots Hopped . | . . . . . . Cave-ins Triggered . | . . . . . . Exploration Rate (%) 29 | 4 24 28 9 83 31 Regions Visited 5 Branch Regions 3 Pre-discovered Areas 1 | . . . . 1 . Known Exits Taken 1 | . . . . 1 . Unknown Exits Taken 4 | 1 1 1 1 . . Scrap Searched . | . . . . . . Spaces Dug . | . . . . . . Terrain Destroyed 55 | . . . . 6 49 Melee . | . . . . . . Projectile 1 | . . . . . 1 AOE 54 | . . . . 6 48 Terrain Rammed . | . . . . . . Walls Destroyed . | . . . . . . Machines Disabled . | . . . . . . Actions | -11 -10 -10 -10 -9 -8 --------- Run | Yrd Mat Min Exi Min Mat Total 1228 | 58 146 121 64 439 400 Wait . | . . . . . . Move 1132 | 47 142 117 63 432 331 Hop . | . . . . . . Pick Up 22 | 6 1 3 1 1 10 Fast Attach . | . . . . . . Attach 21 | 5 . 1 . 1 14 Detach . | . . . . . . Swap . | . . . . . . Drop 3 | . . . . . 3 Fire 44 | . 1 . . 4 39 Melee 3 | . . . . . 3 Ram . | . . . . . . Kick 3 | . 2 . . 1 . Crush . | . . . . . . Escape Stasis . | . . . . . . Rewire . | . . . . . . Trap . | . . . . . . Miscellaneous . | . . . . . . Route ------- -11/Scrapyard -10/Materials -10/Mines (discovered 2 exits: [*Mat] / [*Exi]) -10/Exiles -9/Mines (discovered 2 exits: *Mat x2) -8/Materials History --------- Turn | Location | Event 6 | -11/Scrapyard | Discovered new exit (range 16) 58 | -11/Scrapyard | Entered Materials 141 | -10/Materials | Met 8R-AWN 142 | -10/Materials | Discovered new exit (range 13) 234 | -10/Materials | Entered Mines 236 | -10/Mines | Met a Derelict bent on vengeance 236 | -10/Mines | Followed 8R-AWN into the Mines 265 | -10/Mines | Assembled infested the area 270 | -10/Mines | Assisted by a Guerilla fighting off Assembled 284 | -10/Mines | Discovered new exit (range 11) 314 | -10/Mines | Build established: Mutant 374 | -10/Mines | Discovered new exit (range 5) 379 | -10/Mines | Entered Exiles 379 | -10/Exiles | Accompanied by 2 allies 409 | -10/Exiles | Led the pair of lost Derelicts to a safe place 418 | -10/Exiles | Discovered new exit (range 14) 456 | -10/Exiles | Entered Mines 519 | -9/Mines | Learned location of Storage (-7) 558 | -9/Mines | Learned Materials security intel 763 | -9/Mines | Received a Rocket Launcher from a helpful Derelict 872 | -9/Mines | Identified exit to Materials 955 | -9/Mines | Discovered exit to Materials (range 12) 987 | -9/Mines | Entered Materials 987 | -8/Materials | Evolved 4 slots: Propulsion x2, Utility x2 1127 | -8/Materials | Lost 6 parts (1p2n3w) 1239 | -8/Materials | Core integrity fell below 50% 1277 | -8/Materials | Lost 7 parts (2n3u2w) 2014 | -8/Materials | Core integrity fell below 20% 2061 | -8/Materials | Destroyed by X-57 Shotgunner with High-powered Shotgun Last Messages --------------- G-47 Trooper destroyed. R-06 Scavenger inserts Imp. Ion Engine into recycling unit. Critical hit (Burn: +37). G-47 Trooper Aluminum Leg blasted off. G-47 Trooper destroyed. R-06 Scavenger inserts Heat Sink into recycling unit. Imp. Signal Interpreter broken. Overheating: Short circuit. R-06 Scavenger inserts Aluminum Leg into recycling unit. System corrupted: Assault Cannon jammed. Assault Cannon destroyed. R-06 Scavenger inserts Lgt. Armor Plating into recycling unit. Critical hit (Burn: +37). System corrupted: Energy discharge (-60). R-06 Scavenger collects Aluminum Leg. Lgt. Nuclear Core destroyed. Acquired 19 matter. W-25 Informer sends out distress signal. U-05 Engineer builds a Wall. R-06 Scavenger collects Hvy. Assault Rifle. Map ----- +----------------------------------------------------+ | | | | | | | | | ??????????????????????#######????????????????????? | | ??????????????????????# #######?????????????? | | ??????????????????????# """ # #?????????????? | | ??????????????????????# """ # ##############? | | ??????????????????????# """ + #? | | ??????????????????????+ # ### ######## #? | | ??????????????????????# # #?# #??????# #? | | ??????????????????????######### ##?#+#??????# #? | | ????????????????? #? ?????# #? | | ????????????????????????####### ## """ ?### ## | | ??????????????????????#######?# ## """ # | | ????????????????????# ## ## """ # | | ????????????????????#"" ## ## + T | | ????????????????????#"Y ## ## """ # | | ???????????H????????#"" ## ## """ # | | ????????????????????#% ## ## ????? ## # | | ????????????????????# """" ## ## ???????# # | | ????????????????????# "" ## ####???????# + | | ????????????????????# "" ## #??????????# # | | ????????????????????# %%[ ## #??????????# # | | ????????????????########g###### ####???????# # | | ????????? t x %=@u +???????# # | | ?????????? T g %a% ##### ####???????# # | | ????????? #????+#??????????# # | | ?????????? ###/###### #??????########### # | | ??????????????? ??????# #??????# # # | | ??????????????#????????# #??????# """" # # | | ???????????????????????# +??????# """" + # | | ???????????????????????# # ?????# """" # # | | ???????????????????????# #%?????# # # | | ???????????????????????# #?#????########+## # | | ???????????????????????# #?????????????# # | | ???????????????????????# #?????????????# # | | ???????????????????????# #?????????????# # | | ???????????????????????# +?????????????# # | | ???????????????????????# #?????????????# ###### | | ???????????????????????? ??????????????# #????? | | ?????????????????????????????############## ###### | | ???????????????????????????? | | ???????????????????????????? | | ???????????????????????????? | | ???????????????????????????? | | ???????????????????????????? | | ?????????????????????????????## | | ??????????????????????????????# | | ??????????????????????????????# ##### ##### | +----------------------------------------------------+ Best States ------------- Heat Dissipation 31 Energy Generation 14 Energy Capacity 250 Matter Stores 458 Matter Capacity 500 Sight Range 18 Terrain Scan Density 10 Evasion (%) 55 Melee Accuracy 5 Item Schematics ----------------- None Robot Schematics ------------------ None Fabricated ------------ Nothing Alien Tech Used ----------------- None Achievements -------------- Tourist Challenges ------------ None Game ------ Seed ThunderTrapField Manual? 0 Play Time 00:25:31 Cumulative 4.3 hours Start 2024.04.05 @ 00:50:35 End 2024.04.05 @ 01:15:56 Sessions 1 Manual Loads 0 Difficulty Rogue Special Mode None Game No. 10 Rogue 10 Adventurer 0 Explorer 0 Win Type - Total 0 Types 0/0/0/0/0/0/0/0/0 Lore% 3 Gallery% 8 Achievement% 7 Wizard Run 0 Options --------- Layout 0 ASCII 1 Keyboard 0 Movement Vi Keybinds 0 Fullscreen 1 Font 12/Smallcaps Map View 76x50 Zoom Use 0% Tactical HUD 0 Map Filters NONE Filters NONE Steam SD RUN: e0dd8938-5123-4aca-9bb9-ab8046ac4993